bitfinex/quotes_ETHUSD_20251119
["timestamp","ask_amount","ask_price","bid_price","bid_amount"]
[1763586530189,0.494,2966.7,2965.7,0.405504]
[1763586530359,0.494,2966.7,2965.8,0.119]
[1763586530876,0.57372051,2966.8,2965.8,0.5908]
[1763586531081,5.05050505,2966.9,2965.8,0.5908]
[1763586531277,5.05050505,2966.9,2965.9,0.4718]
[1763586531677,5.05050505,2966.9,2966.8,0.5548]
[1763586531863,5.05050505,2966.9,2966.8,0.119]
[1763586532056,5.05050505,2966.9,2966.5,0.1881]
[1763586532488,5.74825556,2966.9,2966.0,0.0986]
[1763586533051,5.55555556,2966.9,2966.1,0.119]
[1763586533514,0.494,2966.8,2965.7,0.405504]
[1763586533657,0.60495556,2966.7,2965.8,0.119]
[1763586533857,0.60495556,2966.7,2965.5,0.4718]
[1763586534094,1.09895556,2966.7,2965.6,0.119]
[1763586534252,1.09895556,2966.7,2965.5,0.4718]
[1763586534455,1.09895556,2966.7,2965.6,0.524504]
[1763586534874,0.60495556,2966.7,2965.6,0.405504]
[1763586535091,0.494,2966.6,2965.7,0.119]
[1763586535402,0.494,2966.6,2964.6,0.4718]
[1763586535569,0.494,2966.6,2964.7,0.119]
[1763586535765,0.494,2966.6,2964.6,0.4718]
[1763586535956,0.494,2966.6,2964.7,0.119]
[1763586536160,0.494,2966.6,2964.6,0.4718]
[1763586536475,8.61329776,2966.6,2964.2,0.4718]
[1763586536799,8.61329776,2966.6,2964.1,0.1551]
[1763586536800,8.11929776,2966.1,2964.1,0.1551]
[1763586537095,0.494,2966.0,2964.2,0.119]
[1763586537601,0.1549,2965.9,2964.2,0.119]
[1763586538097,0.494,2965.8,2964.3,0.119]
[1763586538394,0.494,2965.8,2964.3,0.5908]
[1763586539559,0.494,2965.8,2964.4,0.119]
[1763586539780,0.494,2965.8,2964.1,0.119]
[1763586539968,0.494,2965.8,2964.1,0.001]
[1763586543621,0.1927,2964.2,2964.1,0.001]
[1763586543982,0.6867,2964.2,2964.1,0.001]
[1763586544216,0.6867,2964.2,2963.9,0.001]
[1763586544363,0.494,2964.1,2963.9,0.001]
[1763586546608,0.436,2964.0,2963.9,0.001]
[1763586547207,0.1927,2964.8,2963.9,0.929]
[1763586547408,0.1927,2965.0,2964.1,0.1881]
[1763586547610,0.494,2965.3,2964.2,0.405504]
[1763586547907,0.494,2965.3,2964.2,0.873204]
[1763586549084,0.1549,2966.2,2964.2,0.873204]
[1763586549085,0.456,2965.8,2964.4,0.405504]
[1763586549278,0.456,2966.1,2965.2,0.1881]
[1763586550289,0.1549,2966.2,2965.2,0.1881]
[1763586550613,0.1549,2966.2,2965.2,0.6558]
[1763586551024,0.1549,2966.2,2965.3,0.4677]
[1763586551529,0.1913,2966.4,2965.3,0.4677]
[1763586551826,0.1933,2966.8,2965.4,0.405504]
[1763586552064,0.50525051,2966.7,2965.6,0.405504]
[1763586552338,0.002,2966.8,2965.8,0.405504]
[1763586552688,0.002,2966.8,2966.0,0.405504]
[1763586553189,0.002,2966.8,2966.1,0.5857]
[1763586553388,0.002,2966.8,2966.1,0.4677]
[1763586553585,0.002,2966.8,2966.3,0.405504]
[1763586554042,0.002,2966.8,2966.4,0.4677]
[1763586555339,0.002,2966.8,2966.6,0.405504]
[1763586555843,0.002,2966.8,2966.2,0.4677]
[1763586556050,0.002,2966.8,2966.3,0.118]
[1763586556551,0.002,2966.8,2966.4,0.4677]
[1763586556915,0.002,2966.8,2965.3,0.405504]
[1763586557251,0.002,2966.8,2966.0,0.405504]
[1763586557548,0.1933,2966.8,2965.9,0.4677]
[1763586557722,0.1933,2966.8,2966.0,0.118]
[1763586557723,0.002,2966.8,2966.0,0.118]
[1763586557924,0.002,2966.8,2966.1,0.405504]
[1763586558249,0.002,2966.8,2966.1,0.873204]
[1763586558812,0.002,2966.8,2965.7,0.4677]
[1763586559135,0.002,2966.8,2965.2,0.1881]
[1763586559136,0.5719805,2966.8,2965.8,0.118]
[1763586559516,0.6887,2965.9,2965.3,0.405504]
[1763586559749,0.6887,2965.9,2965.0,0.1936]
[1763586559950,0.6887,2965.9,2964.3,0.4677]
[1763586559951,0.3618,2965.8,2964.3,0.4677]
[1763586560154,0.3618,2965.8,2964.4,0.118]
[1763586560838,0.3618,2965.8,2964.5,0.118]
[1763586561034,0.3618,2965.8,2964.3,0.4677]
[1763586561429,0.3618,2965.8,2964.4,0.118]
[1763586561620,0.3618,2965.8,2964.3,0.4677]
[1763586561815,0.3618,2965.8,2964.2,0.4677]
[1763586562015,0.3618,2965.8,2964.2,0.5857]
[1763586562526,8.12086355,2965.6,2963.7,0.177]
[1763586562715,8.12086355,2965.1,2963.6,0.001]
[1763586562920,0.1913,2964.0,2963.6,0.001]
[1763586563363,0.1913,2964.9,2963.6,0.001]
[1763586563728,0.456,2964.8,2963.6,0.001]
[1763586567480,0.456,2964.8,2961.7,0.1936]
[1763586567481,0.90699264,2964.2,2962.0,0.4553]
[1763586567683,0.456,2964.8,2961.9,0.001]
[1763586567684,0.1822,2963.7,2961.9,0.001]
[1763586567968,0.1822,2962.2,2961.9,0.001]
[1763586568174,0.6415,2962.2,2961.9,0.001]
[1763586568753,0.1822,2962.2,2961.9,0.001]
[1763586568958,0.1822,2962.5,2961.9,0.001]
[1763586569840,0.4593,2962.4,2961.9,0.001]
[1763586570859,0.1822,2962.8,2961.9,0.001]
[1763586571273,0.4593,2962.7,2961.9,0.001]
[1763586571573,8.12086355,2962.5,2961.9,0.001]
[1763586571737,1.27138635,2962.4,2961.9,0.001]
[1763586572142,0.4593,2962.3,2961.9,0.001]
[1763586572786,0.4593,2962.3,2961.6,0.001]
[1763586572965,0.1822,2961.7,2961.6,0.001]
[1763586573145,0.1822,2961.7,2959.9,0.1837]
[1763586573485,0.4593,2961.6,2959.9,0.1837]
[1763586573697,0.1822,2961.7,2959.8,0.001]
[1763586573843,0.1822,2961.7,2960.0,0.4553]
[1763586574045,0.90699264,2961.6,2959.8,0.001]
[1763586574287,8.12086355,2961.2,2959.8,0.001]
[1763586574639,0.4593,2961.1,2959.8,0.001]
[1763586574868,0.1702,2959.9,2959.8,0.001]
[1763586575281,0.6295,2959.9,2959.8,0.001]
[1763586575446,0.1702,2959.9,2959.8,0.001]
[1763586575805,0.6295,2959.9,2959.8,0.001]
[1763586575986,0.1822,2960.1,2959.8,0.001]
[1763586576295,2.20699264,2960.0,2958.8,0.001]
[1763586576497,8.12086355,2959.6,2958.8,0.001]
[1763586576683,0.1822,2958.9,2957.3,0.1837]
[1763586576888,8.12086355,2958.5,2956.7,0.1837]
[1763586577193,1.3,2958.8,2956.0,0.001]
[1763586577194,0.90699264,2957.9,2956.1,0.1837]
[1763586577378,0.4593,2958.7,2956.1,0.639]
[1763586577551,0.90699264,2958.7,2956.1,0.639]
[1763586577752,0.4593,2958.6,2956.2,0.4553]
[1763586577956,1.40801562,2958.6,2956.2,0.4553]
[1763586578192,0.90699264,2958.2,2956.1,0.1837]
[1763586578490,0.90699264,2958.4,2956.2,0.4951]
[1763586578695,0.4821,2958.3,2956.3,0.405504]
[1763586579006,0.4821,2958.3,2956.2,0.4951]
[1763586579169,0.4821,2958.3,2956.3,0.405504]
[1763586579553,0.4821,2958.3,2956.5,0.405504]
[1763586580004,0.4821,2958.3,2956.7,0.405504]
[1763586580685,0.90699264,2957.9,2956.1,0.1837]
[1763586580889,0.90278562,2957.8,2956.1,0.1837]
[1763586581093,1.58198562,2957.8,2956.1,0.1837]
[1763586581257,0.90699264,2957.4,2956.0,0.001]
[1763586581455,0.4821,2957.3,2956.0,0.001]
[1763586581759,1.58198562,2957.8,2956.1,0.4951]
[1763586581954,0.6792,2957.8,2956.2,0.405504]
[1763586582178,0.1971,2957.8,2956.2,0.405504]
[1763586582404,0.4821,2957.7,2956.3,0.405504]
[1763586582605,0.4821,2957.7,2956.2,0.4951]
[1763586582606,8.12086355,2957.5,2956.0,0.001]
[1763586582758,1.71907899,2957.4,2956.0,0.001]
[1763586583095,0.81208635,2957.4,2956.1,0.4951]
[1763586583279,0.1971,2957.8,2956.2,0.405504]
[1763586583794,0.6792,2957.8,2956.4,0.405504]
[1763586583986,0.1971,2957.8,2956.4,0.405504]
[1763586584294,0.1971,2957.8,2956.6,0.405504]
[1763586584462,0.1971,2957.8,2956.6,0.900604]
[1763586585298,0.1971,2957.8,2956.0,0.001]
[1763586585471,0.4821,2957.7,2956.2,0.405504]
[1763586585795,0.4821,2957.7,2956.1,0.4951]
[1763586586401,0.4821,2957.7,2956.2,0.405504]
[1763586586576,0.4821,2957.7,2956.2,0.900604]
[1763586587077,0.4821,2957.7,2956.0,0.001]
[1763586587290,0.4821,2957.7,2956.4,0.405504]
[1763586588074,0.4821,2957.7,2956.0,0.001]
[1763586588310,0.4821,2957.7,2956.1,0.4951]
[1763586588612,0.4821,2957.7,2956.2,0.405504]
[1763586588788,0.1971,2957.8,2956.2,0.405504]
[1763586588982,0.1971,2957.8,2956.4,0.405504]
[1763586589208,0.6792,2957.8,2956.4,0.405504]
[1763586589412,0.6792,2957.8,2956.5,0.405504]
[1763586589776,0.6792,2957.8,2956.6,0.4951]
[1763586591214,0.1971,2957.8,2956.7,0.405504]
[1763586591421,0.1971,2957.9,2956.7,0.405504]
[1763586591716,0.1971,2957.9,2956.9,0.405504]
[1763586592178,0.1971,2957.9,2956.9,0.4951]
[1763586592916,0.1971,2958.2,2957.0,0.405504]
[1763586593290,0.1971,2958.2,2957.2,0.405504]
[1763586594512,0.1971,2958.2,2957.1,0.195]
[1763586594687,7.29199842,2958.1,2956.9,0.405504]
[1763586594887,0.74890984,2958.0,2956.9,0.405504]
[1763586595089,0.4821,2958.1,2957.0,0.52891805]
[1763586595388,0.90899264,2958.5,2957.0,0.52891805]
[1763586595389,0.1971,2958.4,2957.1,0.405504]
[1763586595588,0.1971,2958.4,2957.3,0.405504]
[1763586595901,0.002,2958.5,2958.3,0.195]
[1763586596099,0.002,2958.5,2957.5,0.405504]
[1763586596609,0.002,2958.5,2957.4,0.6901]
[1763586596610,0.002,2958.5,2957.7,0.405504]
[1763586596916,0.4841,2958.5,2957.4,0.195]
[1763586599282,0.4841,2958.5,2957.0,0.4951]
[1763586599488,0.4841,2958.5,2956.8,0.195]
[1763586600390,0.4821,2958.4,2956.9,0.4951]
[1763586600960,6.80989842,2957.9,2956.5,0.196]
[1763586601259,0.1971,2957.0,2956.5,0.001]
[1763586601739,2.07008248,2957.8,2956.5,0.001]
[1763586601740,0.1971,2957.2,2956.5,0.001]
[1763586601923,0.002,2958.5,2956.5,0.001]
[1763586601924,0.1971,2957.7,2956.7,0.405504]
[1763586602129,0.4821,2958.0,2957.1,0.195]
[1763586602368,0.4841,2958.5,2957.1,0.195]
[1763586602568,0.1971,2957.9,2957.1,0.195]
[1763586603656,0.90699264,2957.7,2956.5,0.001]
[1763586603860,0.1598,2956.9,2956.5,0.001]
[1763586604168,0.1598,2956.9,2954.7,7.84585584]
[1763586604169,0.90699264,2956.5,2954.6,0.195]
[1763586604571,0.4821,2956.4,2954.6,0.195]
[1763586604804,0.1598,2956.9,2955.3,0.4951]
[1763586604805,0.4821,2956.8,2955.3,0.4951]
[1763586605014,0.4821,2956.7,2955.3,0.4951]
[1763586605312,7.84585584,2956.4,2955.1,0.1425]
[1763586605481,0.78458558,2956.3,2955.1,0.1425]
[1763586605661,1.26668558,2956.3,2955.1,0.1425]
[1763586605862,0.4821,2956.3,2955.2,0.4951]
[1763586606058,7.84585584,2956.7,2955.1,0.1425]
[1763586606263,0.1598,2956.9,2956.1,0.195]
[1763586606688,0.4821,2957.5,2956.1,0.195]
[1763586606910,0.6792,2957.9,2956.4,0.405504]
[1763586607065,7.84585584,2957.7,2956.3,0.4951]
[1763586607398,7.84585584,2957.3,2955.9,0.001]
[1763586607560,0.78458558,2957.2,2956.1,0.6901]
[1763586607762,0.4937,2957.5,2956.1,0.6542]
[1763586607995,0.90699264,2957.7,2956.1,0.6542]
[1763586607996,7.84585584,2957.4,2956.1,0.195]
[1763586608162,7.84585584,2957.4,2956.0,0.001]
[1763586608362,0.4937,2957.3,2956.1,0.1909]
[1763586608760,0.182,2956.3,2956.0,0.001]
[1763586609207,0.6757,2956.3,2956.0,0.001]
[1763586610601,0.182,2956.3,2956.0,0.001]
[1763586610907,0.6757,2956.3,2956.0,0.001]
[1763586611112,0.6757,2956.3,2953.9,0.195]
[1763586611113,0.405504,2956.2,2953.9,0.195]
[1763586611265,0.405504,2956.2,2953.4,0.001]
[1763586611266,6.81737106,2955.3,2953.6,0.6584]
[1763586611610,1.58872975,2955.2,2953.6,0.6584]
[1763586611762,2.08242975,2955.2,2953.7,0.03485584]
[1763586611970,0.182,2956.3,2954.0,0.4602]
[1763586612198,0.4937,2955.6,2954.0,0.4602]
[1763586612400,0.4937,2955.6,2954.2,0.405504]
[1763586612625,0.4937,2955.6,2954.1,0.405504]
[1763586612831,0.4937,2955.6,2954.3,0.405504]
[1763586613203,0.90699264,2955.5,2954.0,0.001]
[1763586613522,0.80193837,2955.4,2954.0,0.001]
[1763586613724,1.29563837,2955.4,2954.0,0.001]
[1763586613914,0.4937,2955.3,2954.0,0.001]
[1763586614313,6.61869101,2955.1,2954.0,0.001]
[1763586614630,0.4937,2955.3,2954.0,0.001]
[1763586614631,0.1781,2954.1,2954.0,0.001]
[1763586615094,0.6718,2954.1,2953.7,0.001]
[1763586615289,0.90699264,2953.7,2951.8,0.6584]
[1763586615524,0.90699264,2953.7,2951.1,0.1288]
[1763586615525,0.405504,2953.5,2951.1,0.1288]
[1763586615724,0.90699264,2953.2,2951.2,0.03388452]
[1763586615953,0.90699264,2953.2,2951.6,0.63570488]
[1763586616104,1.24626837,2953.1,2951.6,0.17650488]
[1763586616425,1.24626837,2953.1,2951.2,0.4592]
[1763586616613,0.4937,2953.0,2951.3,0.4592]
[1763586617615,1.08509264,2954.1,2951.4,0.405504]
[1763586617930,0.90699264,2953.1,2951.4,0.405504]
[1763586618134,0.90699264,2953.6,2951.6,0.405504]
[1763586618631,0.90699264,2953.1,2951.8,0.405504]
[1763586618927,0.90699264,2953.0,2951.3,0.405504]
[1763586619096,1.42336837,2952.9,2951.2,0.4592]
[1763586619525,0.4937,2952.8,2951.3,0.405504]
[1763586620154,0.92966837,2952.9,2951.5,0.405504]
[1763586620355,0.1771,2952.9,2951.5,0.405504]
[1763586620656,0.90699264,2952.7,2951.1,0.1288]
[1763586620842,0.4937,2952.8,2951.2,0.4592]
[1763586621159,0.4937,2952.7,2951.3,0.405504]
[1763586621525,0.1771,2952.9,2951.4,0.405504]
[1763586621727,0.1771,2953.2,2951.4,0.405504]
[1763586621925,0.1771,2953.2,2951.6,0.405504]
[1763586622233,0.182,2953.5,2951.6,0.405504]
[1763586622433,0.182,2953.5,2951.8,0.405504]
[1763586622857,0.6757,2953.5,2952.0,0.405504]
[1763586623361,0.6757,2953.5,2952.1,0.1992]
[1763586623362,0.4937,2953.4,2952.1,0.1992]
[1763586624055,0.4937,2953.4,2951.1,0.2478]
[1763586624056,6.61869101,2952.8,2951.1,0.1288]
[1763586624224,0.182,2952.2,2951.1,0.588]
[1763586625337,0.4937,2952.1,2951.1,0.1288]
[1763586625539,0.4937,2952.1,2950.8,0.1992]
[1763586625729,0.1771,2950.9,2949.7,0.4592]
[1763586625930,0.90699264,2951.7,2950.0,0.4908]
[1763586625931,6.61869101,2951.7,2950.0,0.4908]
[1763586626175,0.1965,2951.5,2950.0,0.4908]
[1763586626528,0.4736,2951.4,2950.0,0.4908]
[1763586627232,0.90699264,2951.1,2949.6,0.1938]
[1763586627433,0.90699264,2951.3,2949.6,0.6846]
[1763586627628,0.79992837,2951.2,2949.6,0.6846]
[1763586627930,1.27352837,2951.2,2949.6,0.6846]
[1763586628157,1.27352837,2951.2,2949.7,0.4908]
[1763586628332,0.4736,2951.1,2949.7,0.4908]
[1763586628530,0.4736,2951.1,2949.0,0.37636485]
[1763586628531,0.90699264,2950.7,2949.0,0.37636485]
[1763586628729,0.75256837,2950.6,2949.0,0.1992]
[1763586628979,0.75256837,2950.6,2949.1,0.4908]
[1763586629273,0.4736,2950.5,2949.1,0.4908]
[1763586630041,0.4736,2950.5,2949.9,0.001]
[1763586631864,0.75256837,2950.6,2949.9,0.001]
[1763586632064,0.90699264,2950.7,2949.9,0.001]
[1763586632065,0.4736,2950.9,2949.9,0.001]
[1763586632267,0.4736,2951.6,2950.1,0.405504]
[1763586632472,0.4736,2952.5,2951.4,0.1023]
[1763586632674,0.4736,2952.5,2950.9,0.896304]
[1763586632856,6.61869101,2952.4,2950.8,0.1938]
[1763586633048,6.61869101,2952.4,2950.9,0.405504]
[1763586633049,1.61622174,2952.3,2950.9,0.405504]
[1763586633363,1.1828291,2952.3,2950.9,0.405504]
[1763586633566,0.4736,2952.2,2950.9,0.405504]
[1763586633771,1.61622174,2952.3,2950.9,0.896304]
[1763586633934,0.4736,2952.7,2951.0,0.405504]
[1763586634138,0.4736,2952.7,2951.1,0.405504]
[1763586634533,0.4736,2952.7,2951.1,0.896304]
[1763586634979,0.4736,2952.7,2951.3,0.405504]
[1763586636015,6.61869101,2952.4,2950.9,0.405504]
[1763586636280,6.61869101,2952.4,2951.1,0.405504]
[1763586636281,2.04246174,2952.3,2951.1,0.405504]
[1763586636653,6.61869101,2952.9,2951.1,0.896304]
[1763586636957,0.90699264,2952.8,2951.1,0.896304]
[1763586637292,0.90699264,2952.8,2950.8,0.1938]
[1763586637293,0.002,2953.2,2951.3,0.405504]
[1763586637454,0.4756,2953.2,2951.3,0.405504]
[1763586637650,0.4756,2953.2,2951.5,0.405504]
[1763586637651,3.563,2952.7,2951.5,0.405504]
[1763586637877,0.90699264,2952.8,2951.4,0.4908]
[1763586638189,0.75256837,2952.7,2951.5,0.405504]
[1763586638881,1.24226837,2952.7,2951.5,0.405504]
[1763586639185,0.90699264,2952.8,2951.2,0.4574]
[1763586639385,7.10839101,2952.6,2950.8,0.1938]
[1763586639587,0.90699264,2952.5,2951.2,0.4574]
[1763586639776,1.39669264,2952.5,2951.2,0.4574]
[1763586639971,0.90699264,2952.5,2951.2,0.4574]
[1763586640153,0.4897,2952.4,2951.2,0.4574]
[1763586640775,0.4897,2952.4,2951.3,0.405504]
[1763586640983,0.80153837,2952.4,2951.3,0.405504]
[1763586641184,0.80153837,2952.4,2951.3,0.862904]
[1763586641994,0.1771,2953.0,2951.5,0.405504]
[1763586642486,0.1771,2953.0,2950.9,0.405504]
[1763586642487,0.90699264,2952.8,2950.9,0.405504]
[1763586642686,0.90699264,2952.8,2951.1,0.4574]
[1763586642886,0.90699264,2952.3,2951.1,0.4574]
[1763586643089,1.24226837,2952.7,2951.1,0.4574]
[1763586643587,1.24226837,2952.7,2951.2,0.405504]
[1763586643773,0.75256837,2952.7,2951.2,0.405504]
[1763586643962,0.75256837,2952.7,2951.4,0.405504]
[1763586644493,0.1771,2953.0,2951.6,0.405504]
[1763586644678,0.6668,2953.0,2951.6,0.862904]
[1763586644856,0.6668,2953.0,2951.6,0.4574]
[1763586644857,0.90699264,2952.8,2951.6,0.4574]
[1763586645259,0.4897,2952.7,2951.6,0.4574]
[1763586645893,1.29123837,2952.7,2951.7,0.405504]
[1763586646309,0.4897,2952.7,2951.7,0.405504]
[1763586646466,6.61869101,2952.9,2951.6,0.4574]
[1763586646809,0.4897,2952.6,2951.3,0.405504]
[1763586647168,0.4897,2952.6,2951.4,0.405504]
[1763586647387,0.4897,2952.6,2950.9,0.4574]
[1763586648299,0.4897,2952.6,2951.0,0.03488681]
[1763586648465,0.4897,2952.6,2951.0,0.406504]
[1763586648665,0.4897,2952.6,2951.2,0.405504]
[1763586649066,0.4897,2952.6,2951.4,0.405504]
[1763586649477,0.4897,2952.6,2951.6,0.405504]
[1763586649677,0.6668,2953.0,2951.6,0.405504]
[1763586649879,0.6668,2953.0,2951.8,0.405504]
[1763586650202,0.4897,2953.6,2952.0,0.405504]
[1763586650376,0.4897,2953.6,2952.2,0.405504]
[1763586650777,0.4897,2953.6,2952.3,0.4574]
[1763586650989,0.4897,2953.6,2952.4,0.405504]
[1763586651570,0.4897,2953.6,2952.4,0.4574]
[1763586651971,0.4897,2953.6,2952.2,0.405504]
[1763586652802,1.09099264,2953.5,2952.2,0.405504]
[1763586653303,0.4917,2953.2,2952.2,0.405504]
[1763586653610,8.36454825,2953.2,2951.8,0.1182]
[1763586653808,8.36454825,2953.2,2951.5,0.1888]
[1763586653809,0.90699264,2952.7,2951.5,0.1888]
[1763586654210,7.87284825,2952.4,2951.1,0.1888]
[1763586654633,8.36254825,2952.4,2951.1,0.1888]
[1763586654781,0.4897,2952.4,2951.2,0.4574]
[1763586655479,0.1831,2952.6,2951.2,0.4574]
[1763586655679,0.4897,2952.5,2951.3,0.405504]
[1763586656413,0.4897,2952.5,2951.4,0.405504]
[1763586657220,0.1831,2952.6,2951.5,0.4574]
[1763586657516,0.6728,2952.6,2951.5,0.4574]
[1763586657880,1.6549671,2952.6,2951.5,0.4574]
[1763586659612,0.4897,2952.5,2951.2,0.405504]
[1763586660182,0.1831,2951.3,2951.0,0.001]
[1763586660422,0.90699264,2951.2,2951.0,0.001]
[1763586660719,0.9331971,2951.1,2951.0,0.001]
[1763586660936,0.1831,2951.3,2951.0,0.001]
[1763586661299,1.6549671,2952.6,2951.1,0.1285]
[1763586661598,0.1831,2952.9,2951.2,0.405504]
[1763586661803,0.002,2953.2,2952.5,0.1888]
[1763586662703,0.002,2953.2,2952.1,0.1888]
[1763586662704,0.4917,2953.2,2952.1,0.1888]
[1763586662893,1.39869264,2953.2,2952.1,0.1888]
[1763586663089,1.39869264,2953.2,2952.1,0.6462]
[1763586663090,0.002,2953.2,2952.1,0.6462]
[1763586663287,0.002,2953.2,2952.2,0.405504]
[1763586663513,0.002,2953.2,2952.2,0.862904]
[1763586663689,1.39869264,2953.2,2951.8,0.4574]
[1763586663893,1.39869264,2953.2,2951.6,0.405504]
[1763586663894,1.4537571,2953.1,2951.6,0.405504]
[1763586664221,0.90699264,2952.7,2951.5,0.4574]
[1763586664720,0.1831,2952.6,2951.5,0.4574]
[1763586665228,0.1831,2952.6,2951.6,0.405504]
[1763586665411,1.1652671,2952.6,2951.6,0.405504]
[1763586666325,0.002,2953.2,2952.5,0.1888]
[1763586666512,0.002,2953.2,2953.1,0.1888]
[1763586666820,0.002,2953.2,2952.5,0.1888]
[1763586668119,0.002,2953.2,2952.5,0.6663]
[1763586668491,0.002,2953.2,2952.5,0.1888]
[1763586668828,0.1914,2952.6,2951.6,0.4775]
[1763586669735,0.002,2953.2,2952.5,0.1815]
[1763586669889,0.002,2953.2,2953.1,0.1815]
[1763586670094,0.002,2953.2,2952.6,0.4775]
[1763586670315,0.002,2953.2,2952.7,0.405504]
[1763586670522,0.002,2953.2,2953.1,0.587004]
[1763586670934,0.002,2953.2,2953.1,1.064504]
[1763586672432,0.002,2953.2,2952.5,0.1815]
[1763586672433,0.002,2953.2,2952.5,0.659]
[1763586672729,0.002,2953.2,2952.5,0.1815]
[1763586673907,0.002,2953.2,2952.5,0.659]
[1763586674414,0.002,2953.2,2952.6,0.4775]
[1763586675102,0.002,2953.2,2952.5,0.1815]
[1763586675426,0.002,2953.2,2951.5,0.4785]
[1763586675427,0.1914,2952.6,2951.5,0.4785]
[1763586675836,0.1914,2952.6,2951.6,0.405504]
[1763586676197,0.1914,2952.6,2951.5,0.4785]
[1763586676399,0.6758,2952.6,2951.5,0.001]
[1763586676822,0.1914,2952.6,2951.5,0.4785]
[1763586676994,0.1914,2952.6,2951.6,0.405504]
[1763586677796,0.4844,2952.9,2951.5,0.001]
[1763586678002,0.6758,2952.9,2951.8,0.405504]
[1763586678895,0.4844,2952.8,2951.5,0.001]
[1763586679936,0.90699264,2952.4,2951.5,0.001]
[1763586680094,0.88957371,2952.3,2951.5,0.001]
[1763586680298,1.37397371,2952.3,2951.5,0.001]
[1763586680510,0.4844,2952.3,2951.5,0.001]
[1763586680913,0.4844,2952.8,2951.6,0.405504]
[1763586681300,0.4844,2952.8,2951.6,0.4775]
[1763586681510,1.39139264,2952.8,2951.5,0.001]
[1763586681712,1.44155371,2952.7,2951.5,0.001]
[1763586682136,0.4844,2952.6,2951.5,0.001]
[1763586685063,0.1914,2951.6,2951.5,0.001]
[1763586685523,0.4844,2952.2,2951.5,0.001]
[1763586686130,0.1914,2952.5,2951.5,0.001]
[1763586686838,0.684,2952.5,2951.5,0.001]
[1763586687240,0.4926,2952.4,2951.5,0.001]
[1763586688535,0.1914,2952.5,2951.5,0.001]
[1763586689160,0.684,2952.5,2951.5,0.001]
[1763586690540,0.1914,2952.5,2951.5,0.4579]
[1763586690741,0.1927,2952.8,2951.6,0.405504]
[1763586691061,0.6853,2952.8,2951.6,0.862404]
[1763586691272,0.1914,2952.9,2951.6,0.862404]
[1763586691481,0.1914,2952.9,2951.8,0.405504]
[1763586691776,0.002,2953.2,2952.8,0.1982]
[1763586691977,0.002,2953.2,2952.0,0.405504]
[1763586692366,0.002,2953.2,2953.1,0.1982]
[1763586692563,0.002,2953.2,2952.8,0.1815]
[1763586692970,0.002,2953.2,2952.8,0.6384]
[1763586693276,0.002,2953.2,2952.1,0.1828]
[1763586693277,0.4946,2953.2,2952.3,0.4569]
[1763586693477,0.002,2953.2,2952.4,0.405504]
[1763586693847,0.002,2953.2,2952.4,0.862404]
[1763586696852,0.002,2953.2,2952.6,0.405504]
[1763586697579,0.002,2953.2,2953.1,1.071004]
[1763586698480,0.3691,2953.2,2952.5,0.405504]
[1763586698682,0.002,2953.2,2952.5,0.405504]
[1763586699189,0.002,2953.2,2952.4,0.4902]
[1763586699387,0.002,2953.2,2952.5,0.405504]
[1763586699858,0.002,2953.2,2952.6,0.405504]
[1763586700261,0.4954,2953.1,2952.2,0.405504]
[1763586700583,0.002,2953.2,2952.0,0.1866]
[1763586700749,0.002,2953.2,2952.3,0.405504]
[1763586700953,0.4954,2953.1,2952.3,0.405504]
[1763586701180,0.4954,2953.1,2952.1,0.405504]
[1763586701382,0.4954,2953.1,2952.4,0.001]
[1763586701759,0.002,2953.2,2952.4,0.001]
[1763586702191,0.4974,2953.2,2952.4,0.001]
[1763586703373,0.4974,2953.2,2953.1,0.6784]
[1763586703374,0.002,2953.2,2953.1,0.6784]
[1763586703576,0.002,2953.2,2952.6,0.405504]
[1763586704268,0.002,2953.2,2953.1,0.592104]
[1763586704461,0.002,2953.2,2953.1,1.083904]
[1763586704797,0.002,2953.2,2953.1,1.574104]
[1763586706807,0.002,2953.2,2953.1,0.592104]
[1763586706965,0.002,2953.2,2953.1,1.574104]
[1763586710279,0.002,2953.2,2953.1,1.693104]
[1763586712907,0.002,2953.2,2953.1,1.574104]
[1763586713802,0.002,2953.2,2953.1,1.693104]
[1763586714319,0.002,2953.2,2953.1,0.6784]
[1763586714528,0.002,2953.2,2953.1,1.083904]
[1763586714901,0.002,2953.2,2953.1,0.6784]
[1763586715521,0.002,2953.2,2953.1,1.083904]
[1763586716026,0.002,2953.2,2953.1,1.574104]
[1763586716804,0.002,2953.2,2952.4,0.001]
[1763586716805,0.8744,2953.2,2952.4,0.001]
[1763586718192,0.4943,2953.1,2952.4,0.001]
[1763586720193,0.381,2952.5,2952.4,0.001]
[1763586720432,0.4943,2953.1,2952.4,0.001]
[1763586720595,0.1815,2952.8,2952.4,0.001]
[1763586721277,0.3891,2952.5,2952.4,0.001]
[1763586721752,0.8835,2952.5,2952.4,0.001]
[1763586722540,0.1815,2952.8,2952.4,0.001]
[1763586722741,0.6769,2952.8,2952.4,0.001]
[1763586722928,0.4954,2952.7,2952.4,0.001]
[1763586723255,0.3891,2952.5,2952.4,0.001]